fUSD/lending_fUSD_20260208
["ID","MTS","AMOUNT","RATE_DAILY","PERIOD"]
[404791002,1770565838596,-1589.76337572,0.00026434,2]
[404791003,1770565838606,-1589.76337572,0.00026434,2]
[404791004,1770565838617,-307.07760048,0.00026434,2]
[404791005,1770565838634,-1282.68577524,0.00026434,2]
[404791006,1770565838645,-1589.76337572,0.00026434,2]
[404791007,1770565838656,-1589.76337572,0.00026434,2]
[404791008,1770565838667,-1589.76337572,0.00026434,2]
[404791009,1770565838678,-1589.76337572,0.00026434,2]
[404791010,1770565838688,-1589.76337572,0.00026434,2]
[404791011,1770565838700,-1589.76337572,0.00026434,2]
[404791012,1770565838711,-1589.76337572,0.00026434,2]
[404791013,1770565838723,-1589.76337572,0.00026434,2]
[404791014,1770565838733,-1589.76337572,0.00026434,2]
[404791015,1770565838743,-1589.76337572,0.00026434,2]
[404791016,1770565838754,-1589.76337572,0.00026434,2]
[404791018,1770565838766,-1589.76337572,0.00026434,2]
[404791020,1770565838778,-1589.76337572,0.00026434,2]
[404791021,1770565838789,-1589.76337572,0.00026434,2]
[404791022,1770565838800,-1589.76337572,0.00026434,2]
[404791023,1770565838812,-1589.76337572,0.00026434,2]
[404791024,1770565838823,-1695.74760075,0.00026434,2]
[404791025,1770565838833,-1695.74760075,0.00026434,2]
[404791026,1770565838844,-1695.74760075,0.00026434,2]
[404791028,1770565838855,-1695.74760075,0.00026434,2]
[404791031,1770565838871,-243.52758596,0.00026435,2]
[404791032,1770565838882,-3453.4698484,0.00026435,2]
[404791033,1770565838894,-279.52576533,0.00026435,2]
[404791034,1770565838905,-17476.79075246,0.00026435,2]
[404791035,1770565838915,-572404.85347794,0.00026435,2]
[404791038,1770565838932,-185168.27021932,0.00026435,2]
[404791039,1770565838947,-187974.3303,0.00026435,2]
[404791040,1770565838959,-441.0999981,0.00026435,2]
[404791041,1770565838984,-80999.99999995,0.00026435,2]
[404791042,1770565840428,-2511.0,0.00026435,2]
[404791043,1770565840498,-2873.09432935,0.00026435,2]
[404791044,1770565840514,-2246.78656152,0.00026435,2]
[404791045,1770565840572,-1525.0,0.00026435,2]
[404791046,1770565840598,-340740.31597964,0.00026435,2]
[404791047,1770565840771,-372.26420459,0.00026435,2]
[404791048,1770565840844,-846.72430433,0.00026435,2]
[404791049,1770565840920,-4075.0,0.00026435,2]
[404791050,1770565840998,-524.84081099,0.00026435,2]
[404791051,1770565841011,-46926.72930722,0.00026435,2]
[404791069,1770565845071,-885.07673966,0.00026334,2]
[404791070,1770565845085,-6974.92326034,0.00026435,2]
[404791071,1770565845164,-6180.65434544,0.00026435,2]
[404791072,1770565845176,-311.28919994,0.00026435,2]
[404791073,1770565846230,-1599.9309531,0.00026435,2]
[404791074,1770565846243,-37236.99062287,0.00026435,2]
[404791075,1770565846254,-532.46684907,0.00026435,2]
[404791076,1770565846277,-3076.71848472,0.00026435,2]
[404791077,1770565846328,-355.065,0.00026435,2]
[404791078,1770565846340,-1148.56964262,0.00026435,2]
[404791079,1770565846372,-1750.0,0.00026435,2]
[404791080,1770565846501,-375.057,0.00026435,2]
[404791094,1770566007056,150.0,0.00035342,30]
[404791095,1770566007432,150.0,0.00035397,30]
[404791096,1770566007636,150.0,0.00035452,30]
[404791097,1770566007807,150.0,0.00035506,30]
[404791098,1770566008012,150.0,0.00035561,30]
[404791099,1770566008186,224.0,0.00035616,30]
[404791100,1770566047111,459.0,0.00035616,30]
[404791102,1770566124663,180.48850923,0.00035342,30]
[404791103,1770566126000,150.0,0.00035342,30]
[404791104,1770566126103,154.52605614,0.00035342,30]
[404791105,1770566126184,150.0,0.00035397,30]
[404791106,1770566126261,150.0,0.00035342,30]
[404791107,1770566126343,200.0,0.00035452,30]
[404791108,1770566126407,150.0,0.00035397,30]
[404791109,1770566126482,150.0,0.00035342,30]
[404791110,1770566126561,150.0,0.00035342,30]
[404791111,1770566126610,200.0,0.00035452,30]
[404791112,1770566126708,150.0,0.00035397,30]
[404791113,1770566126805,150.0,0.00035342,30]
[404791114,1770566126877,200.0,0.00035452,30]
[404791115,1770566127343,150.0,0.00035342,30]
[404791116,1770566127499,150.0,0.00035397,30]
[404791117,1770566127555,150.0,0.00035342,30]
[404791118,1770566127607,150.0,0.00035342,30]
[404791119,1770566127667,200.0,0.00035452,30]
[404791120,1770566127722,150.0,0.00035397,30]
[404791121,1770566127787,150.0,0.00035342,30]
[404791122,1770566127891,200.0,0.00035452,30]
[404791123,1770566128005,150.0,0.00035397,30]
[404791124,1770566128274,200.0,0.00035452,30]
[404791125,1770566128497,150.0,0.00035342,30]
[404791126,1770566128609,150.0,0.00035342,30]
[404791127,1770566128683,150.0,0.00035397,30]
[404791128,1770566128832,200.0,0.00035452,30]
[404791129,1770566129092,163.67948397,0.00035342,30]
[404791130,1770566129250,150.5833019,0.00035342,30]
[404791131,1770566129439,150.0,0.00035342,30]
[404791132,1770566129648,150.0,0.00035397,30]
[404791133,1770566129824,199.29985758,0.00035452,30]
[404791136,1770566327584,150.4,0.00030137,30]
[404791137,1770566498281,1425.528,0.00035342,41]
[404791138,1770566498340,195.078,0.00035342,41]
[404791139,1770566659267,150.00063199,0.000353,30]
[404791140,1770566756027,312.41,0.00029868,30]
[404791142,1770566784112,500.0,0.00029868,30]
[404791143,1770566798541,500.0,0.00029868,30]
[404791144,1770566958315,-178.92,0.00020469,2]
[404791145,1770566958336,-250.0,0.00021492,2]
[404791146,1770566958357,-300.0,0.00022516,2]
[404791147,1770566958378,-250.0,0.00022516,2]
[404791148,1770566958398,-300.0,0.00022516,2]
[404791149,1770566958418,-500.0,0.0002411,2]
[404791150,1770566958439,-500.0,0.00024438,2]
[404791151,1770566958458,-500.0,0.00024603,2]
[404791152,1770567024377,320.0,0.00025115,120]
[404791153,1770567024443,320.0,0.00028255,120]
[404791154,1770567024570,320.0,0.00031394,120]
[404791155,1770567024774,320.0,0.00034534,120]
[404791163,1770567031386,-2468.72,0.00024879,2]
[404791164,1770567031397,-300.0,0.0002496,2]
[404791165,1770567031408,-5000.0,0.00024961,2]
[404791166,1770567031418,-186.55,0.00025067,2]
[404791167,1770567031427,-160.0,0.0002508,2]
[404791168,1770567031438,-1200.0,0.00025088,2]
[404791169,1770567031449,-1852.42,0.00025153,2]
[404791170,1770567031459,-300.0,0.00025183,2]
[404791171,1770567031470,-500.0,0.00025184,3]
[404791172,1770567031480,-6953.86,0.00025202,2]
[404791173,1770567031490,-12298.83,0.00025306,2]
[404791174,1770567031506,-1876.7,0.00025329,2]
[404791175,1770567031516,-462.812,0.0002548,2]
[404791176,1770567031528,-200.0,0.00025521,2]
[404791177,1770567031540,-7870.23,0.00025521,2]
[404791178,1770567031550,-2305.46143741,0.0002559,2]
[404791179,1770567031560,-150.0,0.00025599,2]
[404791180,1770567031571,-287.82,0.000256,2]
[404791181,1770567031581,-7208.63,0.000256,2]
[404791182,1770567031590,-150.99,0.000261,2]
[404791183,1770567031599,-217.01480573,0.000261,2]
[404791184,1770567031609,-1000.0,0.0002614,2]
[404791185,1770567031619,-157.76,0.00026179,2]
[404791186,1770567031629,-4837.72412353,0.00026235,2]
[404791187,1770567031642,-5870.09927647,0.00026235,2]
[404791188,1770567031652,-5529.77,0.00026299,2]
[404791189,1770567031662,-518.70813887,0.00026335,2]
[404791190,1770567031675,-2589.41472469,0.00026335,2]
[404791191,1770567031685,-3186.33002441,0.00026335,2]
[404791192,1770567031711,-1093.02365196,0.00026335,2]
[404791193,1770567031724,-2.55122363,0.00026335,2]
[404791194,1770567031732,-724.85299041,0.00026335,2]
[404791195,1770567031745,-1775.14700959,0.00026335,2]
[404791196,1770567031756,-151.0,0.00026419,2]
[404791197,1770567031765,-65.26001021,0.00026419,2]
[404791198,1770567031776,-85.73998979,0.00026419,2]
[404791199,1770567031786,-151.0,0.00026419,2]
[404791200,1770567031795,-151.0,0.00026419,2]
[404791202,1770567031805,-97.46001021,0.00026419,2]
[404791204,1770567031816,-53.53998979,0.00026419,2]
[404791206,1770567031826,-151.0,0.00026419,2]
[404791207,1770567031836,-149.81042009,0.00026419,2]
[404791209,1770567031847,-3.56245118,0.00026419,2]
[404791211,1770567031857,-151.0,0.00026432,7]
[404791213,1770567031866,-612.48754882,0.00026434,2]
[404791222,1770567037451,-387.51245118,0.00026434,2]
[404791223,1770567037460,-500.0,0.00026434,2]
[404791224,1770567037469,-500.0,0.00026434,2]
[404791225,1770567037479,-334.88754882,0.00026434,2]
[404791226,1770567037490,-165.11245118,0.00026434,2]
[404791227,1770567037506,-500.0,0.00026434,2]
[404791228,1770567037515,-474.11325724,0.00026434,2]
[404791229,1770567037535,-25.88674276,0.00026434,2]
[404791230,1770567037548,-500.0,0.00026434,2]
[404791231,1770567037559,-500.0,0.00026434,2]
[404791232,1770567037569,-500.0,0.00026434,2]
[404791233,1770567037580,-500.0,0.00026434,2]
[404791234,1770567037589,-500.0,0.00026434,2]
[404791235,1770567037599,-500.0,0.00026434,2]
[404791236,1770567037608,-500.0,0.00026434,2]
[404791237,1770567037619,-500.0,0.00026434,2]
[404791238,1770567037629,-500.0,0.00026434,2]
[404791239,1770567037639,-500.0,0.00026434,2]
[404791240,1770567037648,-500.0,0.00026434,2]
[404791241,1770567037659,-500.0,0.00026434,2]
[404791242,1770567037668,-500.0,0.00026434,2]
[404791243,1770567037678,-500.0,0.00026434,2]
[404791244,1770567037687,-328.26501477,0.00026434,2]
[404791245,1770567037698,-500.0,0.00026434,2]
[404791246,1770567037707,-500.0,0.00026434,2]
[404791247,1770567037718,-500.0,0.00026434,2]
[404791248,1770567037729,-500.0,0.00026434,2]
[404791249,1770567037739,-500.0,0.00026434,2]
[404791250,1770567037749,-500.0,0.00026434,2]
[404791251,1770567037760,-500.0,0.00026434,2]
[404791252,1770567037771,-182.82650147,0.00026434,2]
[404791253,1770567037780,-500.0,0.00026434,2]
[404791254,1770567037789,-500.0,0.00026434,2]
[404791255,1770567037800,-236.42628716,0.00026434,2]
[404791256,1770567037809,-91516.0040539,0.00026435,2]
[404791257,1770567037827,-1837.56,0.00026435,2]
[404791260,1770567039523,-4138.8,0.00026435,2]
[404791261,1770567039547,-550.32,0.00026435,2]
[404791262,1770567039559,-2325.0,0.00026435,2]
[404791263,1770567039889,-1525.8636748,0.00026435,2]
[404791264,1770567039901,-539.63574858,0.00026435,2]
[404791265,1770567039913,-387.82460822,0.00026435,2]
[404791266,1770567039925,-265.52757558,0.00026435,2]
[404791267,1770567039936,-2427.21244412,0.00026435,2]
[404791273,1770567043611,-37083.6029949,0.00026435,2]
[404791274,1770567043621,-173.2883026,0.00026435,2]
[404791275,1770567043630,-22414.3585476,0.00026435,2]
[404791276,1770567043640,-500.0,0.00026708,2]
[404791277,1770567043650,-151.7645,0.000268,2]
[404791278,1770567043659,-160.0,0.00026817,2]
[404791279,1770567043672,-890.17860797,0.0002683,7]
[404791280,1770567043682,-3955.71762357,0.0002683,7]
[404791281,1770567043691,-10150.4661,0.00026835,2]
[404791282,1770567043701,-500.0,0.00026884,2]
[404791283,1770567043710,-500.0,0.00026884,2]
[404791284,1770567043719,-500.0,0.00026884,2]
[404791285,1770567043729,-500.0,0.00026884,2]
[404791286,1770567043739,-1004.24833384,0.00026934,10]
[404791287,1770567043749,-1004.24833384,0.00026934,10]
[404791288,1770567043759,-500.0,0.00026982,2]
[404791289,1770567043768,-150.000001,0.00027,2]
[404791290,1770567043778,-420.0,0.00027041,2]
[404791291,1770567043788,-157.76,0.00027095,2]
[404791292,1770567043797,-500.0,0.00027256,2]
[404791293,1770567043807,-420.0,0.00027276,2]
[404791294,1770567043816,-1680.0,0.00027299,2]
[404791295,1770567043826,-511.89,0.00027341,2]
[404791296,1770567043836,-1004.24833384,0.00027391,10]
[404791297,1770567043845,-1000.0,0.00027397,20]
[404791298,1770567043856,-255.04,0.00027397,2]
[404791299,1770567043870,-500.0,0.00027473,5]
[404791300,1770567043879,-500.0,0.00027473,5]
[404791301,1770567043889,-378.34923646,0.00027473,5]
[404791302,1770567043899,-30021.11086949,0.00027491,2]
[404791303,1770567043909,-500.0,0.0002753,2]
[404791304,1770567043918,-500.0,0.00027804,2]
[404791305,1770567043928,-1000.0,0.00028021,5]
[404791306,1770567043938,-1000.0,0.00028021,5]
[404791307,1770567043947,-354.59805596,0.00028078,2]
[404791308,1770567043957,-151.0,0.00028097,7]
[404791309,1770567043968,-15729.11167725,0.000281,2]
[404791310,1770567043978,-117807.58644161,0.000282,7]
[404791311,1770567043988,-160.0,0.000282,7]
[404791312,1770567043998,-399.0,0.00028255,7]
[404791313,1770567044008,-270.0,0.00028255,5]
[404791314,1770567044018,-378.0,0.00028255,5]
[404791315,1770567044028,-496.0,0.00028255,5]
[404791316,1770567044037,-3108.12286348,0.00028309,2]
[404791317,1770567044047,-199.0,0.00028337,7]
[404791318,1770567044057,-239.0,0.00028337,7]
[404791319,1770567044071,-162.0,0.00028337,5]
[404791320,1770567044081,-227.0,0.00028337,5]
[404791321,1770567044090,-159.0,0.00028419,7]
[404791322,1770567044101,-151.0,0.00028419,5]
[404791323,1770567044112,-3393.976,0.00028497,2]
[404791324,1770567044123,-412.0,0.00028497,2]
[404791325,1770567044133,-157.76,0.00028502,2]
[404791326,1770567044143,-166.66,0.00028534,2]
[404791327,1770567044153,-157.76,0.00028566,2]
[404791328,1770567044163,-1500.0,0.00028568,5]
[404791329,1770567044174,-256.53185435,0.00028568,5]
[404791330,1770567044184,-187.22,0.00028579,2]
[404791331,1770567044194,-157.76,0.00028631,2]
[404791332,1770567044204,-511.89,0.00028643,2]
[404791333,1770567044214,-2447.0,0.0002868,2]
[404791334,1770567044224,-157.76,0.00028696,2]
[404791335,1770567044234,-250.0,0.00028719,2]
[404791336,1770567044243,-616.0,0.00028719,2]
[404791337,1770567044253,-1411.0,0.00028719,2]
[404791338,1770567044266,-3484.0,0.00028719,2]
[404791339,1770567044275,-1335.0,0.00028719,2]
[404791340,1770567044286,-1272.0,0.00028719,2]
[404791341,1770567044296,-1215.019,0.00028719,2]
[404791342,1770567044305,-917.0,0.00028719,2]
[404791343,1770567044315,-203.21,0.00029042,2]
[404791344,1770567044325,-2000.0,0.00029116,5]
[404791345,1770567044334,-500.0,0.00029288,2]
[404791346,1770567044344,-1000.0,0.00029408,2]
[404791347,1770567044356,-166.66,0.00029476,2]
[404791348,1770567044366,-587.0,0.00029543,2]
[404791349,1770567044375,-2500.0,0.00029664,5]
[404791350,1770567044386,-2351.0,0.00029705,2]
[404791351,1770567044395,-151.0,0.00029866,7]
[404791352,1770567044404,-500.0,0.00029868,20]
[404791353,1770567044414,-31817.7697877,0.00029869,2]
[404791354,1770567044423,-5001.3194123,0.00029869,2]
[404791355,1770567044434,-15729.11167717,0.00029878,2]
[404791356,1770567044443,-511.89,0.00029945,2]
[404791357,1770567044453,-4800.0,0.0003,3]
[404791358,1770567044463,-242.7432701,0.0003,2]
[404791359,1770567044476,-3000.0,0.00030212,5]
[404791360,1770567044485,-3108.12286348,0.00030283,2]
[404791361,1770567044495,-166.66,0.00030418,2]
[404791362,1770567044508,-5529.0,0.000305,5]
[404791363,1770567044518,-7099.5040683,0.00030635,2]
[404791364,1770567044527,-1115.9452014,0.00030635,2]
[404791365,1770567044536,-203.21,0.00030655,2]
[404791366,1770567044547,-155.53073824,0.00030745,2]
[404791367,1770567044556,-187.22,0.00030758,2]
[404791368,1770567044566,-3500.0,0.0003076,5]
[404791369,1770567044576,-511.89,0.00031247,2]
[404791370,1770567044586,-4000.0,0.00031308,5]
[404791371,1770567044596,-6746.0,0.0003136,5]
[404791372,1770567044606,-166.66,0.0003136,2]
[404791373,1770567044616,-3255.0,0.00031497,2]
[404791374,1770567044625,-412.0,0.00031497,2]
[404791375,1770567044635,-15729.11167717,0.00031656,2]
[404791376,1770567044644,-2447.0,0.0003168,2]
[404791377,1770567044653,-616.0,0.00031719,2]
[404791378,1770567044665,-1411.0,0.00031719,2]
[404791379,1770567044674,-3484.0,0.00031719,2]
[404791380,1770567044683,-1335.0,0.00031719,2]
[404791381,1770567044693,-1272.0,0.00031719,2]
[404791382,1770567044702,-1206.0,0.00031719,2]
[404791383,1770567044712,-917.0,0.00031719,2]
[404791384,1770567044722,-3665.15653857,0.00031856,5]
[404791385,1770567044732,-823.0,0.00031999,2]
[404791386,1770567044741,-174.96000331,0.00032257,4]
[404791387,1770567044751,-3108.12286348,0.00032258,2]
[404791388,1770567044989,-203.21,0.00032269,2]
[404791389,1770567044999,-166.66,0.00032302,2]
[404791390,1770567045009,-3292.0,0.00032323,3]
[404791391,1770567045019,-509.0,0.00032616,2]
[404791392,1770567045029,-1000.0,0.00032676,2]
[404791393,1770567045038,-168.0,0.00033097,2]
[404791394,1770567045048,-166.66,0.00033244,2]
[404791395,1770567045058,-15729.11167717,0.00033434,2]
[404791396,1770567045067,-168.0,0.00033512,2]
[404791397,1770567045077,-186.55,0.00033576,2]
[404791398,1770567045086,-168.0,0.00033587,2]
[404791399,1770567045097,-203.21,0.00033882,2]
[404791400,1770567045107,-1087.9262344,0.00034159,2]
[404791401,1770567045116,-3108.12286348,0.00034232,2]
[404791402,1770567045126,-3255.0,0.00034497,2]
[404791403,1770567045135,-412.0,0.00034497,2]
[404791404,1770567045145,-2458.60029545,0.00034576,2]
[404791405,1770567045155,-155.53073824,0.00034588,2]
[404791406,1770567045165,-582.0,0.00034659,2]
[404791407,1770567045174,-2447.0,0.0003468,2]
[404791408,1770567045184,-151.0,0.00034716,14]
[404791409,1770567045193,-616.0,0.00034719,2]
[404791410,1770567045203,-1411.0,0.00034719,2]
[404791411,1770567045212,-3484.0,0.00034719,2]
[404791412,1770567045222,-1335.0,0.00034719,2]
[404791413,1770567045232,-1272.0,0.00034719,2]
[404791414,1770567045241,-1206.0,0.00034719,2]
[404791416,1770567045251,-917.0,0.00034719,2]
[404791418,1770567045260,-509.0,0.00034873,4]
[404791420,1770567045270,-150.0,0.00034904,2]
[404791421,1770567045279,-150.0,0.00034999,2]
[404791422,1770567045289,-4609.0,0.00035172,3]
[404791423,1770567045298,-186.53,0.00035206,2]
[404791425,1770567045307,-238.70462824,0.00035211,2]
[404791426,1770567045317,-15729.11167717,0.00035212,2]
[404791427,1770567045326,-1200.0,0.0003524,20]
[404791428,1770567045335,-6953.86,0.00035282,2]
[404791429,1770567045344,-200.0,0.00035388,2]
[404791430,1770567045354,-203.21,0.00035495,2]
[404791431,1770567045364,-300.48,0.00035548,14]
[404791432,1770567045374,-200.0,0.00035685,2]
[404791433,1770567045384,-256.366,0.00035882,120]
[404791434,1770567045394,-2000.0,0.000359,2]
[404791435,1770567045404,-1000.0,0.00035943,2]
[404791436,1770567045414,-202.43238911,0.00035988,2]
[404791437,1770567045425,-200.0,0.00036016,2]
[404791438,1770567045435,-3108.12286348,0.00036206,2]
[404791439,1770567045445,-606.0,0.00036384,2]
[404791440,1770567045456,-150.0,0.00036649,2]
[404791441,1770567045466,-1956.93388936,0.000368,2]
[404791442,1770567045476,-14141.22793603,0.0003691,2]
[404791443,1770567045486,-2458.60029545,0.00036957,2]
[404791444,1770567045498,-15729.11167717,0.00036991,2]
[404791445,1770567045512,-165.83518045,0.00037,2]
[404791446,1770567045522,-203.21,0.00037109,2]
[404791447,1770567045532,-509.0,0.00037129,7]
[404791448,1770567045544,-175.80757504,0.000372,120]
[404791449,1770567045554,-175.80757502,0.000372,120]
[404791450,1770567045563,-186.55,0.00037487,2]
[404791451,1770567045574,-3255.0,0.00037497,2]
[404791452,1770567045584,-412.0,0.00037497,2]
[404791453,1770567045594,-152.0,0.0003767,3]
[404791454,1770567045605,-320.0,0.00037673,120]
[404791455,1770567045615,-2447.0,0.0003768,2]
[404791456,1770567045624,-616.0,0.00037719,2]
[404791457,1770567045634,-1411.0,0.00037719,2]
[404791458,1770567045644,-3484.0,0.00037719,2]
[404791459,1770567045654,-1272.0,0.00037719,2]
[404791460,1770567045663,-1206.0,0.00037719,2]
[404791461,1770567045673,-917.0,0.00037719,2]
[404791462,1770567045682,-7659.07,0.00037749,2]
[404791463,1770567045692,-175.80757502,0.00037769,120]
[404791464,1770567045702,-300.0,0.00037808,2]
[404791465,1770567045712,-150.0,0.00037999,30]
[404791466,1770567045722,-500.0,0.00038111,14]
[404791467,1770567045732,-500.0,0.00038111,14]
[404791468,1770567045743,-174.96000331,0.00038179,11]
[404791469,1770567045752,-6453.0,0.00038271,3]
[404791470,1770567045762,-150.4,0.00038356,120]
[404791471,1770567045772,-155.53073824,0.00038431,2]
[404791472,1770567045782,-150.0,0.00038482,2]
[404791473,1770567045792,-235.38405119,0.00038562,2]
[404791474,1770567045801,-203.21,0.00038722,2]
[404791475,1770567045811,-15729.11167717,0.00038769,2]
[404791476,1770567045821,-150.0,0.000389,30]
[404791477,1770567045830,-150.0,0.00038999,2]
[404791478,1770567045840,-1000.0,0.00039211,2]
[404791479,1770567045852,-2458.60029545,0.00039339,2]
[404791480,1770567045862,-509.0,0.00039386,10]
[404791481,1770567045871,-200.0,0.00039437,20]
[404791482,1770567045881,-2000.0,0.00039556,3]
[404791483,1770567045890,-152.56,0.0003959,2]
[404791484,1770567045899,-2000.0,0.000396,2]
[404791485,1770567045909,-250.0,0.00039673,2]
[404791486,1770567045919,-648.32121275,0.00039725,30]
[404791487,1770567045929,-500.0,0.00039725,20]
[404791488,1770567045939,-151.0,0.00039726,120]
[404791489,1770567045948,-151.0,0.00039726,120]
[404791491,1770567045957,-151.0,0.00039726,120]
[404791493,1770567045966,-151.0,0.00039726,120]
[404791495,1770567045976,-151.0,0.00039726,120]
[404791497,1770567045985,-151.0,0.00039726,120]
[404791498,1770567045995,-151.0,0.00039726,120]
[404791499,1770567046004,-151.0,0.00039726,120]
[404791500,1770567046013,-151.0,0.00039726,120]
[404791501,1770567046022,-151.0,0.00039726,120]
[404791502,1770567046032,-151.0,0.00039726,120]
[404791503,1770567046041,-151.0,0.00039726,120]
[404791504,1770567046051,-162.943974,0.00039726,120]
[404791505,1770567046060,-151.0,0.00039726,120]
[404791506,1770567046069,-151.0,0.00039726,120]
[404791507,1770567046079,-151.0,0.00039726,120]
[404791508,1770567046088,-151.0,0.00039726,120]
[404791509,1770567046098,-151.0,0.00039726,120]
[404791510,1770567046107,-151.0,0.00039726,120]
[404791511,1770567046116,-151.0,0.00039726,120]
[404791512,1770567046126,-221.525154,0.00039726,120]
[404791513,1770567046136,-151.0,0.00039726,31]
[404791514,1770567046145,-151.0,0.00039726,31]
[404791515,1770567046155,-151.0,0.00039726,31]
[404791516,1770567046164,-151.0,0.00039726,120]
[404791517,1770567046174,-151.0,0.00039726,31]
[404791518,1770567046184,-151.0,0.00039726,120]
[404791519,1770567046193,-151.0,0.00039726,120]
[404791520,1770567046202,-151.0,0.00039726,120]
[404791521,1770567046212,-151.0,0.00039726,120]
[404791522,1770567046222,-151.0,0.00039726,120]
[404791523,1770567046232,-215.864729,0.00039726,120]
[404791524,1770567046242,-500.0,0.00039755,14]
[404791525,1770567046253,-500.0,0.00039755,14]
[404791526,1770567046266,-500.0,0.00039773,5]
[404791527,1770567046277,-500.0,0.00039773,5]
[404791528,1770567046287,-500.87198904,0.00039773,5]
[404791529,1770567046296,-163.29201766,0.00039773,5]
[404791530,1770567046306,-266.02436079,0.00039773,5]
[404791531,1770567046316,-500.0,0.00039773,5]
[404791532,1770567046325,-500.0,0.00039773,5]
[404791533,1770567046336,-500.0,0.00039773,5]
[404791534,1770567046345,-500.0,0.00039773,5]
[404791535,1770567046355,-500.0,0.00039773,5]
[404791536,1770567046365,-210.7555449,0.00039773,5]
[404791537,1770567046375,-500.0,0.00039773,5]
[404791538,1770567046384,-500.0,0.00039773,5]
[404791539,1770567046393,-500.0,0.00039773,5]
[404791540,1770567046405,-500.0,0.00039773,5]
[404791541,1770567046415,-500.0,0.00039773,3]
[404791542,1770567046425,-500.0,0.00039773,5]
[404791543,1770567046434,-500.0,0.00039773,5]
[404791544,1770567046444,-336.78196896,0.00039773,5]
[404791545,1770567046453,-161.69643778,0.00039773,2]
[404791546,1770567046463,-307.74612653,0.00039773,5]
[404791547,1770567046472,-500.0,0.00039773,5]
[404791548,1770567046481,-500.0,0.00039773,5]
[404791549,1770567046491,-160.67699478,0.00039773,5]
[404791550,1770567046501,-500.0,0.00039773,5]
[404791551,1770567046515,-500.0,0.00039773,5]
[404791552,1770567046524,-500.0,0.00039773,5]
[404791553,1770567046533,-500.0,0.00039773,5]
[404791554,1770567046543,-500.0,0.00039773,5]
[404791555,1770567046554,-500.0,0.00039773,5]
[404791556,1770567046563,-500.0,0.00039773,5]
[404791557,1770567046572,-500.0,0.00039773,5]
[404791558,1770567046583,-574.65491415,0.00039773,5]
[404791559,1770567046592,-163.51853063,0.00039773,5]
[404791560,1770567046602,-500.0,0.00039773,5]
[404791561,1770567046612,-500.0,0.00039773,5]
[404791562,1770567046623,-500.0,0.00039773,5]
[404791563,1770567046632,-334.00212945,0.00039773,5]
[404791564,1770567046642,-500.0,0.00039773,5]
[404791565,1770567046652,-500.0,0.00039773,5]
[404791566,1770567046661,-500.0,0.00039773,5]
[404791567,1770567046671,-500.0,0.00039773,5]
[404791568,1770567046680,-500.0,0.00039773,5]
[404791569,1770567046690,-160.19834943,0.00039773,5]
[404791570,1770567046699,-500.0,0.00039773,5]
[404791571,1770567046708,-157.71420536,0.00039773,5]
[404791572,1770567046717,-182.78802872,0.00039773,5]
[404791573,1770567046726,-169.92614025,0.00039773,5]
[404791574,1770567046736,-309.65397131,0.00039773,5]
[404791575,1770567046745,-500.0,0.00039773,5]
[404791576,1770567046754,-166.82497959,0.00039773,5]
[404791577,1770567046764,-160.43029551,0.00039773,5]
[404791578,1770567046773,-500.0,0.00039773,5]